bitfinex/quotes_BTCUSD_20240723
["timestamp","ask_amount","ask_price","bid_price","bid_amount"]
[1721742023409,1.54588245,66599.0,66598.0,0.000913]
[1721742023612,1.11057845,66599.0,66598.0,0.000913]
[1721742023819,1.08155521,66599.0,66598.0,0.000913]
[1721742024015,0.69747591,66599.0,66598.0,0.000913]
[1721742024304,0.24701991,66599.0,66598.0,0.000913]
[1721742024511,0.54732391,66599.0,66598.0,0.000913]
[1721742024723,1.30577991,66599.0,66598.0,0.000913]
[1721742024936,1.75300648,66599.0,66598.0,0.000913]
[1721742025180,1.59196913,66599.0,66598.0,0.000913]
[1721742025390,0.44269448,66599.0,66598.0,0.000913]
[1721742025595,0.29254248,66599.0,66598.0,0.000913]
[1721742025802,0.14701991,66599.0,66598.0,0.000913]
[1721742026053,0.30092627,66599.0,66598.0,0.000913]
[1721742026306,0.9466269,66599.0,66598.0,0.000913]
[1721742026525,1.44089158,66599.0,66598.0,0.000913]
[1721742026772,1.8560349,66599.0,66598.0,0.000913]
[1721742026995,2.07909558,66599.0,66598.0,0.000913]
[1721742027237,1.79803722,66599.0,66598.0,0.000913]
[1721742027446,1.75407654,66599.0,66598.0,0.000913]
[1721742027658,1.79489372,66599.0,66598.0,0.000913]
[1721742028307,1.69489372,66599.0,66598.0,0.000913]
[1721742028523,1.79489372,66599.0,66598.0,0.000913]
[1721742028948,0.99777991,66599.0,66598.0,0.000913]
[1721742029179,1.30577991,66599.0,66598.0,0.000913]
[1721742029420,1.64691111,66599.0,66598.0,0.000913]
[1721742030236,1.66991111,66599.0,66598.0,0.000913]
[1721742030443,0.63830311,66599.0,66598.0,0.000913]
[1721742030649,0.14701991,66599.0,66598.0,0.000913]
[1721742031077,0.54878942,66617.0,66598.0,0.000913]
[1721742031078,0.30303,66615.0,66598.0,0.000913]
[1721742031287,0.14701991,66614.0,66598.0,0.000913]
[1721742031524,0.150152,66599.0,66598.0,0.000913]
[1721742031735,0.002794,66610.0,66598.0,0.000913]
[1721742031955,0.450456,66599.0,66598.0,0.000913]
[1721742032165,0.64252151,66599.0,66598.0,0.000913]
[1721742032368,0.14701991,66599.0,66598.0,0.000913]
[1721742032799,0.1781,66609.0,66598.0,0.000913]
[1721742032800,0.052794,66623.0,66605.0,0.150138]
[1721742033011,0.14701991,66622.0,66598.0,0.000913]
[1721742033230,0.002794,66621.0,66601.0,0.300294]
[1721742033437,0.14701991,66620.0,66599.0,0.1391]
[1721742033634,0.02315072,66619.0,66599.0,0.1391]
[1721742033858,0.150146,66602.0,66599.0,0.1391]
[1721742034065,0.15015,66600.0,66599.0,0.1391]
[1721742034274,0.450456,66599.0,66598.0,0.000913]
[1721742034499,0.9575275,66599.0,66598.0,0.000913]
[1721742034713,1.2578315,66599.0,66598.0,0.000913]
[1721742034922,0.6572235,66599.0,66598.0,0.000913]
[1721742035363,1.3578315,66599.0,66598.0,0.000913]
[1721742035992,1.9661355,66599.0,66598.0,0.000913]
[1721742036195,2.02553902,66599.0,66598.0,0.000913]
[1721742036655,1.39423502,66599.0,66598.0,0.000913]
[1721742036862,1.3578315,66599.0,66598.0,0.000913]
[1721742037081,1.54815169,66599.0,66598.0,0.000913]
[1721742037288,1.47115169,66599.0,66598.0,0.000913]
[1721742037494,1.39815169,66599.0,66598.0,0.000913]
[1721742037702,1.0381001,66599.0,66598.0,0.000913]
[1721742037904,1.6464041,66599.0,66598.0,0.000913]
[1721742038127,1.6694041,66599.0,66598.0,0.000913]
[1721742038547,0.002794,66615.0,66598.0,0.064713]
[1721742038754,0.002794,66620.0,66600.0,0.1406]
[1721742038985,0.14701991,66620.0,66601.0,0.0616]
[1721742039192,0.44093655,66630.0,66601.0,0.0616]
[1721742039193,0.002794,66619.0,66618.0,0.150109]
[1721742039401,0.002794,66625.0,66619.0,0.150105]
[1721742039623,0.150086,66629.0,66621.0,0.0827]
[1721742039825,0.300135,66637.0,66621.0,0.0827]
[1721742040034,0.18010681,66636.0,66621.0,0.0827]
[1721742040256,0.14701991,66636.0,66621.0,0.0827]
[1721742040455,0.002794,66635.0,66621.0,0.0827]
[1721742040658,0.014,66625.0,66621.0,0.0827]
[1721742041092,0.05654641,66644.0,66621.0,0.0827]
[1721742041093,0.07348942,66624.0,66621.0,0.0827]
[1721742041302,0.07348942,66624.0,66616.0,0.0616]
[1721742041303,0.150111,66617.0,66616.0,0.0616]
[1721742041556,0.22050933,66617.0,66611.0,0.1453]
[1721742041776,0.258,66628.0,66611.0,0.1453]
[1721742041777,0.002794,66616.0,66611.0,0.1453]
[1721742041996,0.002794,66624.0,66623.0,0.300196]
[1721742042219,0.05,66629.0,66628.0,0.300174]
[1721742042436,0.05,66629.0,66612.0,0.81576291]
[1721742042437,0.002794,66639.0,66638.0,0.150062]
[1721742042649,0.05,66639.0,66638.0,0.450191]
[1721742042861,0.05,66640.0,66622.0,0.5]
[1721742043071,0.05,66639.0,66638.0,0.150064]
[1721742043277,0.05,66640.0,66639.0,0.150062]
[1721742043494,0.29703491,66660.0,66636.0,0.05]
[1721742043705,0.29703491,66660.0,66652.0,0.150031]
[1721742043706,0.05,66654.0,66652.0,0.150031]
[1721742043917,0.05,66645.0,66632.0,0.4736]
[1721742044144,0.05,66635.0,66618.0,0.4185]
[1721742044350,0.05,66623.0,66622.0,0.1511]
[1721742044563,0.05,66623.0,66622.0,0.001]
[1721742044784,0.07348942,66632.0,66622.0,0.001]
[1721742044785,0.05,66625.0,66624.0,0.300192]
[1721742044992,0.05,66627.0,66626.0,0.150091]
[1721742045195,0.05,66627.0,66626.0,0.290491]
[1721742045405,0.05,66627.0,66626.0,0.1404]
[1721742046045,0.37358442,66646.0,66626.0,0.1404]
[1721742046046,0.05,66629.0,66626.0,0.1404]
[1721742046275,0.002794,66645.0,66627.0,0.00300169]
[1721742046276,0.05,66643.0,66627.0,0.00300169]
[1721742046488,0.002794,66650.0,66628.0,0.60300108]
[1721742046753,0.002794,66650.0,66649.0,0.150039]
[1721742046966,0.05,66657.0,66656.0,0.150024]
[1721742047170,0.002794,66667.0,66650.0,0.0819]
[1721742047171,0.05,66661.0,66660.0,0.150015]
[1721742047594,0.44093655,66669.0,66650.0,0.0819]
[1721742047595,0.05,66654.0,66650.0,0.0819]
[1721742047806,0.05,66661.0,66660.0,0.150015]
[1721742048049,0.14701991,66671.0,66650.0,0.22891991]
[1721742048253,0.05,66668.0,66667.0,0.149999]
[1721742048454,0.00846,66672.0,66666.0,0.512104]
[1721742048455,0.05,66667.0,66666.0,0.512104]
[1721742048657,0.05,66667.0,66666.0,0.0621]
[1721742048658,0.19701991,66667.0,66666.0,0.0621]
[1721742048869,0.05,66667.0,66666.0,0.212101]
[1721742049087,0.00846,66672.0,66671.0,0.14999]
[1721742049299,0.05846,66672.0,66671.0,0.44997]
[1721742049512,0.05,66668.0,66667.0,0.0816]
[1721742049727,0.05,66657.0,66656.0,0.0816]
[1721742049936,0.05,66657.0,66656.0,0.1437]
[1721742050151,0.05,66657.0,66656.0,0.0621]
[1721742050364,0.5350663,66657.0,66656.0,0.0621]
[1721742050571,0.5350663,66657.0,66649.0,0.3685]
[1721742050572,0.05,66650.0,66649.0,0.3685]
[1721742050774,0.07348942,66661.0,66648.0,0.0639]
[1721742050775,0.200039,66649.0,66648.0,0.0639]
[1721742050983,0.800197,66649.0,66648.0,0.0639]
[1721742051396,0.05,66643.0,66642.0,0.518555]
[1721742051604,0.05,66643.0,66642.0,0.3685]
[1721742052038,0.500159,66643.0,66642.0,0.3685]
[1721742052449,0.94728491,66643.0,66642.0,0.3685]
[1721742052653,0.05,66633.0,66632.0,0.0607]
[1721742052859,0.500226,66633.0,66632.0,0.0607]
[1721742053069,0.05,66624.0,66623.0,0.210798]
[1721742053294,0.05,66625.0,66624.0,0.150096]
[1721742053501,0.05,66624.0,66623.0,0.210797]
[1721742053716,0.05,66624.0,66622.0,0.0823]
[1721742053717,0.05,66621.0,66602.0,0.5236]
[1721742053938,0.05,66621.0,66611.0,0.0626]
[1721742053939,0.05,66612.0,66611.0,0.0626]
[1721742054421,0.05,66603.0,66602.0,0.0626]
[1721742054634,0.500429,66603.0,66602.0,0.0626]
[1721742054862,0.05,66601.0,66600.0,0.15015]
[1721742055071,0.05,66604.0,66597.0,0.373594]
[1721742055274,0.16009331,66618.0,66597.0,0.373594]
[1721742055275,0.05,66602.0,66597.0,0.073284]
[1721742055500,0.05,66600.0,66597.0,0.073284]
[1721742055707,0.05,66608.0,66597.0,0.073284]
[1721742055926,0.05,66615.0,66597.0,0.073284]
[1721742056149,0.05,66604.0,66599.0,0.00673337]
[1721742056567,0.05,66624.0,66599.0,0.00673337]
[1721742056568,0.05,66600.0,66599.0,0.00673337]
[1721742056791,0.20015,66600.0,66599.0,0.00673337]
[1721742057004,0.20015,66600.0,66598.0,0.000913]
[1721742057005,0.500456,66599.0,66598.0,0.000913]
[1721742057214,0.94777991,66599.0,66598.0,0.000913]
[1721742057435,1.45021084,66599.0,66598.0,0.000913]
[1721742058475,1.80051484,66599.0,66598.0,0.000913]
[1721742058881,2.08151484,66599.0,66598.0,0.000913]
[1721742059296,2.08151484,66599.0,66592.0,0.009295]
[1721742059297,0.350165,66593.0,66592.0,0.009295]
[1721742059514,1.19885,66585.0,66565.0,0.0151951]
[1721742059724,1.05894,66583.0,66565.0,0.0151951]
[1721742059939,1.66935821,66583.0,66565.0,0.0151951]
[1721742060138,2.01973421,66583.0,66565.0,0.0151951]
[1721742060354,2.06297625,66583.0,66565.0,0.0151951]
[1721742060562,2.07487625,66583.0,66565.0,0.0151951]
[1721742060984,1.45347795,66583.0,66565.0,0.0151951]
[1721742061201,1.47423591,66583.0,66565.0,0.0151951]
[1721742061407,1.48323591,66583.0,66565.0,0.0151951]
[1721742061625,1.83361191,66583.0,66565.0,0.0151951]
[1721742061875,1.84761191,66583.0,66565.0,0.0151951]
[1721742062083,1.36233591,66583.0,66565.0,0.0151951]
[1721742062928,0.76158391,66583.0,66567.0,0.0791]
[1721742063153,0.76158391,66583.0,66578.0,0.0629]
[1721742063154,0.36120791,66583.0,66578.0,0.0629]
[1721742063359,0.19701991,66583.0,66578.0,0.0629]
[1721742063569,0.19701991,66583.0,66568.0,0.150221]
[1721742063570,0.64758391,66583.0,66568.0,0.150221]
[1721742063783,0.36120791,66583.0,66567.0,0.379546]
[1721742063990,0.34720791,66583.0,66571.0,0.302428]
[1721742064197,0.34720791,66583.0,66575.0,0.30041]
[1721742064198,0.19701991,66583.0,66575.0,0.30041]
[1721742064408,0.064,66583.0,66579.0,0.150196]
[1721742064608,0.24847401,66583.0,66575.0,0.30041]
[1721742064815,0.24847401,66583.0,66577.0,0.150201]
[1721742064816,0.34720791,66583.0,66577.0,0.150201]
[1721742065025,0.21101991,66583.0,66578.0,0.150198]
[1721742065229,0.66158391,66583.0,66571.0,0.302428]
[1721742065442,0.66158391,66583.0,66571.0,0.002]
[1721742065648,0.96195991,66583.0,66571.0,0.002]
[1721742065851,1.26233591,66583.0,66571.0,0.002]
[1721742066059,1.36233591,66583.0,66571.0,0.002]
[1721742066273,1.49191844,66583.0,66571.0,0.002]
[1721742066487,2.07329444,66583.0,66571.0,0.002]
[1721742066688,1.97329444,66583.0,66571.0,0.002]
[1721742066892,1.49191844,66583.0,66571.0,0.002]
[1721742067136,0.74758391,66583.0,66571.0,0.002]
[1721742067344,0.46120791,66583.0,66571.0,0.002]
[1721742067560,0.74758391,66583.0,66572.0,0.150213]
[1721742067774,1.04795991,66583.0,66571.0,0.002]
[1721742067980,1.36233591,66583.0,66571.0,0.002]
[1721742068193,1.50929856,66583.0,66571.0,0.002]
[1721742068618,0.46120791,66583.0,66571.0,0.002]
[1721742069053,1.06195991,66583.0,66571.0,0.002]
[1721742069260,1.06195991,66583.0,66572.0,0.300422]
[1721742069261,0.46120791,66583.0,66572.0,0.300422]
[1721742069503,0.21101991,66583.0,66581.0,0.0606]
[1721742069725,0.064,66583.0,66581.0,0.1373]
[1721742069940,0.014,66583.0,66582.0,0.15029]
[1721742070161,0.064,66583.0,66582.0,0.0001]
[1721742070800,0.05,66585.0,66584.0,0.150186]
[1721742071011,0.05,66588.0,66587.0,0.450537]
[1721742071226,0.05,66588.0,66587.0,0.750895]
[1721742071439,0.05,66592.0,66591.0,0.45051]
[1721742071654,0.002794,66601.0,66586.0,0.150181]
[1721742071655,0.05,66587.0,66586.0,0.150181]
[1721742071856,0.05,66587.0,66586.0,0.450544]
[1721742072073,0.150164,66594.0,66582.0,0.0001]
[1721742072074,0.05,66583.0,66582.0,0.15029]
[1721742072285,0.05,66583.0,66582.0,0.0001]
[1721742072719,0.64758391,66583.0,66582.0,0.0001]
[1721742073144,1.34833591,66583.0,66582.0,0.0001]
[1721742073377,1.04795991,66583.0,66582.0,0.0001]
[1721742073588,1.1785559,66583.0,66582.0,0.0001]
[1721742074212,1.04795991,66583.0,66582.0,0.0001]
[1721742074421,0.46120791,66583.0,66582.0,0.0001]
[1721742074654,0.44720791,66583.0,66582.0,0.0001]
[1721742074870,0.46120791,66583.0,66582.0,0.0001]
[1721742075072,0.064,66583.0,66582.0,0.0001]
[1721742075303,0.014,66583.0,66582.0,0.450671]
[1721742075514,0.96195991,66583.0,66582.0,0.0001]
[1721742075719,1.3781119,66583.0,66582.0,0.0001]
[1721742075927,1.36233591,66583.0,66582.0,0.0001]
[1721742076131,1.46233591,66583.0,66582.0,0.0001]
[1721742076349,1.36233591,66583.0,66582.0,0.0001]
[1721742076788,1.95671191,66583.0,66582.0,0.0001]
[1721742076997,2.12667456,66583.0,66582.0,0.0001]
[1721742077240,2.14067456,66583.0,66582.0,0.0001]
[1721742077447,2.12667456,66583.0,66582.0,0.0001]
[1721742077865,2.09067456,66583.0,66582.0,0.0001]
[1721742078270,2.44105056,66583.0,66582.0,0.0001]
[1721742079123,1.551917,66572.0,66571.0,0.002]
[1721742079337,2.13302633,66572.0,66571.0,0.002]
[1721742079549,2.13302633,66572.0,66551.0,0.002]
[1721742079550,0.558516,66552.0,66551.0,0.002]
[1721742079792,1.70734191,66552.0,66551.0,0.002]
[1721742080013,1.34882591,66552.0,66551.0,0.002]
[1721742080446,1.04830991,66552.0,66551.0,0.002]
[1721742080652,1.34882591,66552.0,66551.0,0.002]
[1721742080857,0.74779391,66552.0,66551.0,0.002]
[1721742081064,1.34882591,66552.0,66551.0,0.002]
[1721742081266,1.4837085,66552.0,66551.0,0.002]
[1721742081470,1.4977085,66552.0,66551.0,0.002]
[1721742081707,1.7842245,66552.0,66551.0,0.002]
[1721742081909,2.1833245,66552.0,66551.0,0.002]
[1721742082119,2.2203245,66552.0,66551.0,0.002]
[1721742082373,2.2703245,66552.0,66551.0,0.002]
[1721742082788,2.2703245,66552.0,66531.0,0.011295]
[1721742082789,1.102124,66532.0,66531.0,0.011295]
[1721742083056,1.49284391,66532.0,66531.0,0.011295]
[1721742083262,2.12445091,66532.0,66531.0,0.011295]
[1721742083514,2.12445091,66532.0,66511.0,0.002]
[1721742083515,0.0488,66521.0,66511.0,0.002]
[1721742083759,0.707934,66499.0,66491.0,0.0021]
[1721742083996,1.623658,66492.0,66491.0,0.0021]
[1721742084209,1.260758,66492.0,66491.0,0.0021]
[1721742084424,1.44838659,66492.0,66491.0,0.0021]
[1721742084642,1.73028909,66492.0,66491.0,0.0021]
[1721742084878,0.94778991,66492.0,66491.0,0.0021]
[1721742085085,1.29126319,66492.0,66491.0,0.0021]
[1721742085293,1.20320906,66492.0,66491.0,0.0021]
[1721742085505,1.24215885,66492.0,66491.0,0.0021]
[1721742085713,1.24215885,66492.0,66445.0,0.5005]
[1721742085714,0.0773,66471.0,66445.0,0.5005]
[1721742085924,0.05,66457.0,66456.0,0.44093655]
[1721742086216,0.05,66457.0,66446.0,0.00690021]
[1721742086217,0.550286,66447.0,66446.0,0.00690021]
[1721742086460,0.200498,66446.0,66445.0,0.0005]
[1721742086725,0.2205478,66446.0,66445.0,0.0005]
[1721742086952,0.34751791,66446.0,66445.0,0.0005]
[1721742087163,0.19701991,66446.0,66445.0,0.0005]
[1721742087370,0.05,66452.0,66445.0,0.0651]
[1721742087579,0.0488,66457.0,66445.0,0.0651]
[1721742087580,0.05,66446.0,66445.0,0.0651]
[1721742087786,0.05,66446.0,66445.0,0.0005]
[1721742087787,0.2310013,66446.0,66445.0,0.0005]
[1721742088004,1.06350991,66446.0,66445.0,0.0005]
[1721742088217,1.06350991,66446.0,66431.0,0.002]
[1721742088218,0.501588,66432.0,66431.0,0.002]
[1721742088429,1.07195633,66432.0,66431.0,0.002]
[1721742088639,0.19701991,66432.0,66431.0,0.002]
[1721742088856,0.1,66445.0,66431.0,0.002]
[1721742088857,0.05,66446.0,66431.0,0.02508361]
[1721742089065,0.051594,66456.0,66431.0,0.02508361]
[1721742089066,0.05,66443.0,66431.0,0.02508361]
[1721742089277,0.44093655,66464.0,66443.0,0.301007]
[1721742089278,0.05,66454.0,66443.0,0.301007]
[1721742089484,0.05,66454.0,66441.0,0.05]
[1721742089689,0.05,66454.0,66450.0,0.150487]
[1721742089896,0.002794,66462.0,66457.0,0.150473]
[1721742089897,0.05,66458.0,66457.0,0.150473]
[1721742090159,0.14701991,66463.0,66457.0,0.150473]
[1721742090160,0.05,66463.0,66457.0,0.0611]
[1721742090369,0.05,66468.0,66458.0,0.300941]
[1721742090615,0.300854,66478.0,66457.0,0.0611]
[1721742090616,0.05,66460.0,66457.0,0.0611]
[1721742090831,0.300884,66471.0,66457.0,0.0611]
[1721742090832,0.05,66468.0,66457.0,0.0611]
[1721742091042,0.05,66496.0,66457.0,0.0611]
[1721742091043,0.05,66473.0,66457.0,0.20811991]
[1721742091251,0.002794,66459.0,66457.0,0.0611]
[1721742091458,0.05,66461.0,66457.0,0.0611]
[1721742091670,0.05,66458.0,66457.0,0.0611]
[1721742091906,0.0988,66458.0,66457.0,0.0611]
[1721742092137,0.05,66436.0,66435.0,0.0646]
[1721742092338,0.05,66446.0,66445.0,0.1505]
[1721742092620,0.05,66446.0,66435.0,0.0646]
[1721742092834,0.102794,66456.0,66435.0,0.0646]
[1721742092835,0.05,66449.0,66435.0,0.0646]
[1721742093058,0.05,66463.0,66450.0,0.05]
[1721742093265,0.49093655,66471.0,66470.0,0.150443]
[1721742093550,0.49093655,66471.0,66470.0,0.0624]
[1721742093551,0.53973655,66471.0,66470.0,0.0624]
[1721742093758,0.0988,66471.0,66470.0,0.0624]
[1721742093963,0.0988,66471.0,66470.0,0.212843]
[1721742094183,0.05,66471.0,66470.0,0.363287]
[1721742094421,0.0988,66471.0,66470.0,0.0624]
[1721742094837,0.0488,66466.0,66455.0,0.0657]
[1721742095058,0.07348942,66456.0,66448.0,0.002794]
[1721742095291,0.05,66447.0,66446.0,0.02359085]
[1721742095503,0.05,66447.0,66446.0,0.150498]
[1721742095738,0.05,66447.0,66432.0,0.5]
[1721742095739,0.05,66445.0,66432.0,0.5]
[1721742095953,0.05,66439.0,66433.0,0.002794]
[1721742096160,0.05,66439.0,66438.0,0.150516]
[1721742096395,0.1,66455.0,66439.0,0.5]
[1721742096601,0.05,66456.0,66440.0,0.14981391]
[1721742096806,0.0988,66456.0,66454.0,0.150479]
[1721742097015,0.0988,66456.0,66451.0,0.30097]
[1721742097225,0.05,66456.0,66455.0,0.150477]
[1721742097433,0.05,66456.0,66455.0,0.451432]
[1721742097640,0.05,66456.0,66447.0,0.300988]
[1721742097641,0.0488,66454.0,66449.0,0.300979]
[1721742097873,0.0488,66447.0,66434.0,0.05]
[1721742098076,0.0488,66446.0,66435.0,0.301043]
[1721742098284,0.150483,66453.0,66432.0,0.5]
[1721742098285,0.05,66440.0,66439.0,0.0632]
[1721742098491,0.249311,66440.0,66439.0,0.0632]
[1721742098695,0.4660653,66440.0,66439.0,0.0632]
[1721742098927,0.0988,66432.0,66431.0,0.002]
[1721742099134,0.77089733,66432.0,66431.0,0.002]
[1721742099343,0.87089733,66432.0,66431.0,0.002]
[1721742099563,0.46301444,66432.0,66431.0,0.002]
[1721742099779,0.0988,66436.0,66434.0,0.150523]
[1721742099981,0.0988,66436.0,66431.0,0.002]
[1721742099982,0.0988,66436.0,66435.0,0.150523]
[1721742100223,0.05,66437.0,66436.0,0.451561]
[1721742100438,0.07348942,66449.0,66432.0,0.301056]
[1721742100439,0.05,66440.0,66432.0,0.801056]
[1721742100645,0.0488,66446.0,66432.0,0.801056]
[1721742100646,0.05,66442.0,66433.0,0.002794]
[1721742100885,0.05,66434.0,66433.0,0.002794]
[1721742101095,0.249329,66432.0,66431.0,0.002]
[1721742101303,0.05,66432.0,66431.0,0.152532]
[1721742101523,0.05,66432.0,66431.0,0.002]
[1721742101727,0.05,66432.0,66431.0,0.152532]
[1721742101728,0.057,66432.0,66431.0,0.152532]
[1721742101936,0.70440791,66432.0,66431.0,0.002]
[1721742102145,0.8185937,66432.0,66431.0,0.002]
[1721742102349,0.9185937,66432.0,66431.0,0.002]
[1721742102575,0.35376491,66432.0,66431.0,0.002]
[1721742102998,0.54709391,66432.0,66431.0,0.002]
[1721742103420,0.40156491,66432.0,66431.0,0.002]
[1721742103844,0.55209391,66432.0,66431.0,0.002]
[1721742104054,0.35276491,66432.0,66431.0,0.002]
[1721742104256,0.55209391,66432.0,66431.0,0.002]
[1721742104462,0.8933094,66432.0,66431.0,0.002]
[1721742104673,0.8933094,66432.0,66402.0,0.0501]
[1721742104674,0.249372,66413.0,66402.0,0.0001]
[1721742104886,0.34639491,66412.0,66405.0,0.210901]
[1721742105093,0.34639491,66412.0,66402.0,0.0001]
[1721742105094,0.4183123,66412.0,66402.0,0.0001]
[1721742105300,1.09869491,66412.0,66402.0,0.0001]
[1721742105520,1.39984491,66412.0,66402.0,0.0001]
[1721742106150,0.79754491,66412.0,66402.0,0.0001]
[1721742106797,0.1,66412.0,66411.0,0.152577]
[1721742106996,0.1,66412.0,66411.0,0.002]
[1721742106997,0.05,66412.0,66411.0,0.002]
[1721742107224,0.0488,66415.0,66411.0,0.00895151]
[1721742107434,0.0988,66412.0,66411.0,0.002]
[1721742107635,0.200575,66412.0,66411.0,0.002]
[1721742107950,0.19701991,66412.0,66411.0,0.002]
[1721742108364,0.0988,66412.0,66411.0,0.002]
[1721742108563,0.39639491,66412.0,66411.0,0.00897903]
[1721742108769,0.80742491,66412.0,66411.0,0.002]
[1721742108980,0.35569991,66412.0,66411.0,0.002]
[1721742109214,0.05,66412.0,66411.0,0.303154]
[1721742109423,0.05,66412.0,66411.0,0.453731]
[1721742109629,0.0988,66412.0,66411.0,0.00892015]
[1721742110035,0.1387932,66412.0,66411.0,0.002]
[1721742110239,0.2893682,66412.0,66411.0,0.00892015]
[1721742110438,0.05,66412.0,66411.0,0.002]
[1721742110796,0.0988,66412.0,66411.0,0.002]
[1721742111014,0.73248181,66412.0,66411.0,0.002]
[1721742111198,0.53133181,66412.0,66411.0,0.002]
[1721742111398,0.83248181,66412.0,66411.0,0.002]
[1721742111627,0.158,66425.0,66424.0,0.451642]
[1721742111628,0.05,66425.0,66424.0,0.451642]
[1721742111833,0.050745,66432.0,66424.0,0.451642]
[1721742111834,0.0488,66429.0,66424.0,0.0608]
[1721742112034,0.0488,66428.0,66424.0,0.06771329]
[1721742112237,0.0488,66425.0,66424.0,0.36880829]
[1721742112440,0.19776491,66432.0,66427.0,0.301082]
[1721742112441,0.0488,66428.0,66427.0,0.301082]
[1721742112642,0.050745,66432.0,66431.0,0.150532]
[1721742112849,1e-08,66432.0,66431.0,0.451596]
[1721742113054,1e-08,66432.0,66431.0,0.75956683]
[1721742113465,0.09880001,66432.0,66431.0,0.00690683]
[1721742113662,0.09880001,66432.0,66431.0,0.150532]
[1721742113861,1e-08,66432.0,66431.0,0.451596]
[1721742114092,1e-08,66432.0,66431.0,0.75956683]
[1721742114308,0.04880001,66432.0,66431.0,0.00690683]
[1721742114516,1e-08,66432.0,66431.0,0.75266]
[1721742114716,0.05000001,66432.0,66431.0,0.30786785]
[1721742114923,0.09880001,66432.0,66431.0,0.00680385]
[1721742115119,0.09880001,66432.0,66431.0,0.451596]
[1721742115322,0.05,66436.0,66435.0,0.451569]
[1721742115527,0.05,66436.0,66435.0,0.45836916]
[1721742115727,0.05,66436.0,66435.0,0.00680016]
[1721742116043,0.05,66436.0,66435.0,0.150523]
[1721742116277,0.05,66436.0,66435.0,0.15732316]
[1721742116545,0.05,66437.0,66435.0,0.00680016]
[1721742116734,0.0802,66452.0,66435.0,0.00680016]
[1721742116735,0.05,66445.0,66436.0,0.0782]
[1721742117039,0.44093655,66455.0,66436.0,0.0782]
[1721742117040,0.05,66453.0,66450.0,0.150489]
[1721742117165,0.0794,66466.0,66444.0,0.0661]
[1721742117166,0.05,66454.0,66453.0,0.300964]
[1721742117384,0.05,66454.0,66453.0,0.75241]
[1721742117601,0.14701991,66463.0,66453.0,0.00689434]
[1721742117602,0.05,66459.0,66453.0,0.00689434]
[1721742117796,0.14701991,66463.0,66453.0,0.00689434]
[1721742117797,0.05,66456.0,66453.0,0.00689434]
[1721742117932,0.05,66456.0,66449.0,0.300979]
[1721742118133,0.05,66456.0,66451.0,0.30097]
[1721742118378,0.05,66456.0,66452.0,0.00686285]
[1721742118601,0.05,66453.0,66452.0,0.00686285]
[1721742118800,0.05,66453.0,66444.0,0.0661]
[1721742119001,0.05,66453.0,66452.0,0.150484]
[1721742119385,0.05,66454.0,66453.0,0.451446]
[1721742119631,0.05,66454.0,66453.0,0.75241]
[1721742119888,0.05,66466.0,66465.0,0.451365]
[1721742120100,0.05,66470.0,66465.0,0.0645]
[1721742120301,0.05,66466.0,66465.0,0.07124124]
[1721742120473,0.05,66466.0,66465.0,0.00674124]
[1721742120678,0.501357,66466.0,66465.0,0.00674124]
[1721742120879,0.05,66462.0,66460.0,0.150465]
[1721742121082,0.05,66462.0,66461.0,0.150464]
[1721742121286,0.05,66470.0,66461.0,0.00674248]
[1721742121461,0.13376542,66487.0,66461.0,0.00674248]
[1721742121462,0.05,66474.0,66461.0,0.00674248]
[1721742121641,0.05,66470.0,66458.0,0.0645]
[1721742121844,0.05,66470.0,66462.0,0.00674156]
[1721742122047,0.05,66470.0,66469.0,0.451338]
[1721742122254,0.05,66473.0,66463.0,0.00670149]
[1721742122459,0.05,66474.0,66473.0,0.150437]
[1721742122664,0.05,66474.0,66463.0,0.300917]
[1721742122913,0.05,66474.0,66459.0,0.08015]
[1721742122914,0.05,66474.0,66473.0,0.150437]
[1721742123117,0.05,66478.0,66477.0,0.150427]
[1721742123328,0.05,66482.0,66481.0,0.150418]
[1721742123527,0.05,66482.0,66481.0,0.1571029]
[1721742123730,0.05,66482.0,66481.0,0.7587769]
[1721742123940,0.05,66482.0,66481.0,0.46113385]
[1721742124207,0.05,66482.0,66481.0,0.82777085]
[1721742124401,0.05,66487.0,66486.0,0.451222]
[1721742124668,0.14701991,66498.0,66481.0,0.07567885]
[1721742124830,0.00848,66499.0,66486.0,0.00986952]
[1721742124831,0.05,66495.0,66486.0,0.00986952]
[1721742125005,0.15886,66499.0,66481.0,0.0658]
[1721742125006,0.05,66483.0,66481.0,0.0658]
[1721742125204,0.15042,66481.0,66473.0,0.0635]
[1721742125582,0.22050933,66494.0,66473.0,0.0635]
[1721742125583,0.05,66476.0,66473.0,0.0635]
[1721742125796,0.05,66476.0,66475.0,0.150432]
[1721742125997,0.05,66474.0,66473.0,0.0635]
[1721742126167,0.200434,66474.0,66473.0,0.0635]
[1721742126392,0.05,66474.0,66473.0,0.0635]
[1721742126796,0.05,66478.0,66477.0,0.150427]
[1721742126999,0.05,66481.0,66480.0,0.150421]
[1721742127206,0.05,66481.0,66480.0,0.752105]
[1721742127413,0.200419,66481.0,66476.0,0.150428]
[1721742127615,0.05,66474.0,66473.0,0.213937]
[1721742127826,0.05,66474.0,66473.0,0.0635]
[1721742128032,0.05,66481.0,66473.0,0.0635]
[1721742128235,0.05,66481.0,66480.0,0.752105]
[1721742128451,0.0015,66486.0,66485.0,0.752047]